bitfinex-derivatives/quotes_SOLF0:USTF0_20240926
["timestamp","ask_amount","ask_price","bid_price","bid_amount"]
[1727360300187,103.779,153.89,153.81,1.355]
[1727360300689,103.779,153.89,153.82,3.1821136]
[1727360301086,103.779,153.89,153.74,108.81697111]
[1727360301284,27.53,153.87,153.74,108.81697111]
[1727360301483,2.5903,153.86,153.74,108.81697111]
[1727360301685,2.5903,153.86,153.74,81.28697111]
[1727360301881,2.5903,153.86,153.77,27.53]
[1727360302293,103.779,153.89,153.79,27.53]
[1727360303691,103.779,153.89,153.82,27.53]
[1727360303893,103.779,153.89,153.82,30.7813981]
[1727360304091,103.779,153.89,153.79,27.53]
[1727360304288,27.53,153.88,153.76,27.53]
[1727360304791,103.779,153.89,153.76,27.53]
[1727360304988,103.779,153.89,153.85,3.2497]
[1727360305291,103.779,153.89,153.82,3.1779165]
[1727360305494,107.0279,153.89,153.82,3.2503]
[1727360305694,107.0279,153.89,153.82,3.19181342]
[1727360305695,103.779,153.89,153.82,3.19181342]
[1727360305990,103.779,153.89,153.86,3.2495]
[1727360306191,103.779,153.89,153.85,3.20124031]
[1727360306490,103.779,153.89,153.85,27.53]
[1727360306995,103.779,153.89,153.87,3.2491]
[1727360307499,103.779,153.89,153.88,3.2491]
[1727360308290,103.779,153.89,153.87,3.2492]
[1727360308690,103.779,153.89,153.85,27.53]
[1727360309389,103.779,153.89,153.88,27.53]
[1727360309590,103.779,153.89,153.88,30.7791]
[1727360310095,103.779,153.89,153.88,34.00215992]
[1727360310597,4.59054192,153.94,153.88,27.53]
[1727360310791,4.59054192,153.94,153.91,27.53]
[1727360310997,4.59054192,153.94,153.92,3.2482]
[1727360311290,4.59054192,153.94,153.91,30.70821396]
[1727360311291,4.59054192,153.94,153.89,3.30397764]
[1727360311493,4.59054192,153.94,153.93,3.248]
[1727360312495,4.59054192,153.94,153.86,27.53]
[1727360313088,4.59054192,153.94,153.91,3.2484]
[1727360313287,4.59054192,153.94,153.86,27.53]
[1727360313699,4.59054192,153.94,153.87,3.32228935]
[1727360313894,5.94324192,153.94,153.87,3.32228935]
[1727360314098,5.94324192,153.94,153.83,105.53]
[1727360314299,4.59054192,153.94,153.86,27.53]
[1727360315202,4.59054192,153.94,153.91,3.2483]
[1727360315392,4.59054192,153.94,153.89,3.20444947]
[1727360315593,4.59054192,153.94,153.88,27.53]
[1727360315802,4.59054192,153.94,153.88,30.85563569]
[1727360316296,4.59054192,153.94,153.93,3.248]
[1727360318099,1.3866,154.02,153.96,3.2472]
[1727360318293,1.3866,154.02,153.88,3.32563569]
[1727360318294,1.3866,154.02,153.93,27.53]
[1727360320006,1.3866,154.02,153.91,27.53]
[1727360320209,1.3541,154.01,153.91,27.53]
[1727360320702,1.3433,154.0,153.88,108.81563569]
[1727360321107,3.2469,153.99,153.88,108.81563569]
[1727360321304,3.2469,153.99,153.93,3.2479]
[1727360321504,3.2473,153.97,153.88,108.81563569]
[1727360321906,1.3433,154.0,153.88,108.81563569]
[1727360322412,1.3433,154.0,153.93,3.2479]
[1727360322610,3.2468,153.99,153.91,27.53]
[1727360322808,1.3433,154.0,153.88,108.81563569]
[1727360323007,1.3433,154.0,153.91,27.53]
[1727360323511,1.3433,154.0,153.94,3.2478]
[1727360323712,1.3433,154.0,153.91,27.53]
[1727360323911,1.3433,154.0,153.9,27.53]
[1727360324512,1.3433,154.0,153.93,3.2479]
[1727360324812,1.3433,154.0,153.9,27.53]
[1727360325012,1.3433,154.0,153.88,77.96]
[1727360325212,1.3433,154.0,153.87,27.53]
[1727360325407,1.3433,154.0,153.89,27.53]
[1727360326116,1.3433,154.0,153.95,3.2475]
[1727360326417,1.3433,154.0,153.92,27.53]
[1727360326810,1.3541,154.01,153.92,27.53]
[1727360328112,1.3541,154.01,153.95,27.53]
[1727360329022,1.3256,154.05,153.99,3.2466]
[1727360329217,1.3256,154.05,153.89,3.32314738]
[1727360329218,108.0,154.11,153.97,30.85153066]
[1727360329422,1.359,154.07,153.97,27.53]
[1727360329721,1.359,154.07,153.97,3.22635135]
[1727360330020,1.359,154.07,153.94,27.53]
[1727360330216,3.2461,154.03,153.95,3.25656185]
[1727360330418,3.2461,154.03,153.94,27.53]
[1727360330616,1.359,154.07,153.94,27.53]
[1727360331019,1.359,154.07,153.94,30.72484147]
[1727360331320,3.2458,154.04,153.94,30.72484147]
[1727360331519,1.359,154.07,153.94,30.72484147]
[1727360331717,1.387,154.03,153.94,30.72484147]
[1727360331912,1.387,154.03,153.98,3.2468]
[1727360332818,1.387,154.03,153.99,3.2467]
[1727360333014,1.387,154.03,153.94,30.72484147]
[1727360333214,1.387,154.03,153.97,27.53]
[1727360333617,1.359,154.07,153.97,30.69909185]
[1727360333618,3.2454,154.06,153.97,30.69909185]
[1727360333818,1.359,154.07,153.97,30.69909185]
[1727360334117,3.2456,154.05,153.97,30.69909185]
[1727360334319,1.359,154.07,153.99,3.2466]
[1727360335214,1.359,154.07,153.98,3.2469]
[1727360335627,1.359,154.07,153.95,27.53]
[1727360335823,3.246,154.03,153.95,30.85748765]
[1727360336120,27.53,154.06,153.92,77.94]
[1727360336425,17.16,154.03,153.92,98.42813717]
[1727360336616,2.719,154.02,153.92,98.42813717]
[1727360336820,3.2469,153.99,153.95,3.2476]
[1727360337021,2.719,154.02,153.92,98.42813717]
[1727360337221,2.719,154.02,153.95,17.16]
[1727360337521,1.359,154.07,153.97,17.16]
[1727360337723,2.719,154.06,153.99,3.2467]
[1727360337926,17.16,154.05,153.95,17.16]
[1727360338327,2.719,154.06,153.96,3.2472]
[1727360338520,2.719,154.06,153.93,27.44]
[1727360339426,2.719,154.06,153.98,3.2468]
[1727360339626,2.719,154.06,153.93,27.44]
[1727360339820,2.719,154.06,153.96,27.44]
[1727360340017,3.246,154.03,154.0,3.2464]
[1727360340216,2.719,154.06,153.96,27.44]
[1727360341429,2.719,154.06,153.98,3.2469]
[1727360341923,2.719,154.06,153.96,27.44]
[1727360342127,2.719,154.06,153.99,3.2466]
[1727360342429,2.719,154.06,153.96,27.44]
[1727360342630,3.2461,154.03,153.96,27.44]
[1727360343032,3.2457,154.04,153.96,27.44]
[1727360343228,2.719,154.06,153.96,27.44]
[1727360344535,1.3704,154.06,153.96,27.44]
[1727360344738,1.3704,154.06,153.99,27.44]
[1727360344932,1.3704,154.06,154.03,3.2458]
[1727360345536,1.3704,154.06,153.99,27.44]
[1727360345734,1.3704,154.06,153.96,27.44]
[1727360346638,1.3061,154.09,153.99,27.44]
[1727360346939,1.3061,154.09,153.93,27.44]
[1727360346940,3.2467,154.0,153.93,27.44]
[1727360347235,2.6293,154.09,153.96,27.44]
[1727360348144,2.6293,154.09,153.99,3.2466]
[1727360348337,2.6293,154.09,153.96,27.44]
[1727360348539,27.44,154.07,153.94,27.44]
[1727360348740,27.44,154.05,153.92,81.26813717]
[1727360349243,3.2464,154.01,153.97,3.2471]
[1727360349540,27.44,154.07,153.93,27.44]
[1727360349837,3.2464,154.01,153.93,27.44]
[1727360350038,27.44,154.07,153.93,27.44]
[1727360350335,3.246,154.03,153.99,3.2466]
[1727360350740,30.0693,154.09,153.93,27.44]
[1727360350938,27.44,154.06,153.93,27.44]
[1727360351638,2.6293,154.09,153.93,27.44]
[1727360351838,3.2463,154.02,153.98,3.2469]
[1727360352539,3.246,154.03,153.93,27.44]
[1727360352739,27.44,154.08,153.93,27.44]
[1727360353646,3.2463,154.02,153.93,27.44]
[1727360353833,27.44,154.08,153.93,27.44]
[1727360354341,30.0693,154.09,153.93,27.44]
[1727360354843,3.2459,154.03,153.93,27.44]
[1727360355247,3.2459,154.03,153.98,3.2469]
[1727360355741,27.44,154.04,153.91,77.94]
[1727360355944,27.44,154.01,153.89,3.32282257]
[1727360356141,3.2472,153.97,153.88,27.44]
[1727360356443,2.6611,154.0,153.9,27.44]
[1727360356636,2.6611,154.0,153.9,30.70110836]
[1727360356939,2.6611,154.0,153.94,3.2477]
[1727360357143,2.6611,154.0,153.9,30.70110836]
[1727360357736,3.2471,153.98,153.9,30.70110836]
[1727360357943,2.6611,154.0,153.9,30.70110836]
[1727360358347,5.9078,154.0,153.95,17.15]
[1727360358546,2.6611,154.0,153.95,17.15]
[1727360358745,1.2686,154.0,153.96,3.2473]
[1727360358947,3.2465,154.01,153.96,3.2473]
[1727360359246,3.2467,154.0,153.95,20.3974]
[1727360359440,1.328,154.03,153.95,17.15]
[1727360359848,3.2465,154.01,153.97,3.2472]
[1727360360038,1.328,154.03,153.95,17.15]
[1727360360448,2.6625,154.04,153.97,17.15]
[1727360360849,2.6625,154.04,153.99,3.2467]
[1727360360850,3.2461,154.03,153.99,3.2467]
[1727360361250,2.6625,154.04,153.97,17.15]
[1727360361548,2.6625,154.04,153.94,17.15]
[1727360362042,2.6625,154.04,153.91,77.94]
[1727360362043,3.2469,153.99,153.95,3.2475]
[1727360362243,3.2469,153.99,153.92,20.33575207]
[1727360362650,18.5479,154.03,153.94,3.2478]
[1727360362845,18.5479,154.03,153.92,20.33575207]
[1727360362846,1.3979,154.03,153.92,17.15]
[1727360363051,3.2471,153.98,153.94,3.2478]
[1727360363348,18.5479,154.03,153.94,3.2478]
[1727360363752,3.2473,153.97,153.94,3.2478]
[1727360364154,3.2469,153.99,153.92,17.15]
[1727360365052,1.3979,154.03,153.92,17.15]
[1727360365053,3.247,153.98,153.92,17.15]
[1727360365349,108.0,154.11,153.95,17.15]
[1727360365652,17.15,154.04,153.95,17.15]
[1727360366151,3.2465,154.01,153.95,17.15]
[1727360366354,3.2465,154.01,153.97,3.2471]
[1727360366555,17.15,154.04,153.95,17.15]
[1727360366857,3.2463,154.01,153.98,3.2468]
[1727360367051,17.15,154.06,153.95,17.15]
[1727360367445,17.15,154.06,153.98,3.2468]
[1727360367846,3.246,154.03,153.95,17.15]
[1727360368051,17.15,154.06,153.99,3.2466]
[1727360368648,3.2462,154.02,153.99,3.2466]
[1727360368856,17.15,154.06,153.98,3.2469]
[1727360369056,3.2466,154.0,153.93,17.15]
[1727360369458,3.2466,154.0,153.97,3.247]
[1727360369654,3.2469,153.99,153.93,17.15]
[1727360369957,17.15,154.04,153.98,3.2469]
[1727360370153,3.2461,154.03,153.95,17.15]
[1727360370455,4.053,154.08,153.99,3.2466]
[1727360370653,17.15,154.07,153.95,17.15]
[1727360370853,17.15,154.07,153.91,3.19862754]
[1727360370854,17.15,154.05,153.91,3.19862754]
[1727360371054,17.15,154.05,153.96,3.2472]
[1727360371256,17.15,154.05,153.93,20.47911063]
[1727360371458,17.15,154.05,153.98,3.2468]
[1727360371655,17.15,154.05,153.96,17.15]
[1727360372252,3.2466,154.0,153.97,3.247]
[1727360373556,17.15,154.05,153.96,17.15]
[1727360373958,17.15,154.05,153.98,3.2468]
[1727360374460,3.2463,154.02,153.99,3.2467]
[1727360375558,17.15,154.07,153.96,17.15]
[1727360375962,17.15,154.07,153.98,3.2468]
[1727360376160,17.15,154.07,153.96,17.15]
[1727360376556,3.2463,154.02,153.99,3.2467]
[1727360377059,17.15,154.07,153.96,17.15]
[1727360377255,3.2465,154.01,153.98,3.2468]
[1727360377452,17.15,154.07,153.98,3.2468]
[1727360377651,17.15,154.07,153.96,17.15]
[1727360377652,3.2471,153.98,153.95,3.2475]
[1727360377852,6.4906,154.06,153.93,20.41771909]
[1727360378055,6.4906,154.06,153.95,17.15]
[1727360378255,17.15,154.05,153.95,17.15]
[1727360378453,17.15,154.05,153.93,17.15]
[1727360378859,17.15,154.05,153.94,3.19041122]
[1727360379058,17.15,154.05,153.93,17.15]
[1727360379461,3.2465,154.01,153.98,3.2468]
[1727360379761,17.15,154.05,153.98,3.2468]
[1727360380365,3.2469,153.99,153.93,20.3702977]
[1727360381057,3.2466,154.0,153.93,20.3702977]
[1727360381257,1.3967,154.02,153.93,20.3702977]
[1727360381457,1.3967,154.02,153.97,3.247]
[1727360381663,3.2465,154.01,153.93,20.3702977]
[1727360382168,4.643,154.02,153.93,20.3702977]
[1727360382362,1.3967,154.02,153.95,17.15]
[1727360382866,1.3967,154.02,153.97,3.2471]
[1727360382867,3.2465,154.01,153.97,3.2471]
[1727360383463,3.2466,154.0,153.97,3.2471]
[1727360383667,1.3967,154.02,153.97,3.2471]
[1727360383869,1.3967,154.02,153.96,3.2473]
[1727360384264,1.3967,154.02,153.95,3.2474]
[1727360384460,1.3967,154.02,153.93,17.15]
[1727360384662,1.2897,154.01,153.93,17.15]
[1727360384868,3.2471,153.98,153.94,3.2478]
[1727360385366,3.2469,153.99,153.95,3.2475]
[1727360385765,1.2897,154.01,153.93,17.15]
[1727360385964,3.2471,153.98,153.94,3.2477]
[1727360387065,18.4397,154.01,153.92,3.2481]
[1727360387265,17.15,153.98,153.89,77.94]
[1727360387463,17.15,153.96,153.89,77.94]
[1727360387659,3.2482,153.93,153.88,3.2489]
[1727360388063,17.15,153.96,153.85,104.6895874]
[1727360388265,3.19894743,153.99,153.85,17.15]
[1727360388266,3.2486,153.91,153.85,17.15]
[1727360388866,1.2841,153.93,153.85,20.3995]
[1727360389071,1.2841,153.93,153.85,17.15]
[1727360389469,3.2486,153.91,153.86,3.2495]
[1727360389772,1.2841,153.93,153.84,17.15]
[1727360390161,3.2485,153.91,153.86,3.2493]
[1727360390362,1.2841,153.93,153.86,3.2493]
[1727360390569,3.2486,153.91,153.86,3.2493]
[1727360390865,1.2981,153.95,153.88,17.15]
[1727360391360,1.2981,153.95,153.88,20.399]
[1727360391563,3.2482,153.93,153.88,17.15]
[1727360391765,1.2981,153.95,153.88,17.15]
[1727360392665,1.2981,153.95,153.88,20.399]
[1727360392865,1.2981,153.95,153.85,17.15]
[1727360393265,1.2981,153.95,153.87,3.2492]
[1727360393871,1.2981,153.95,153.85,20.34207595]
[1727360394462,3.2481,153.93,153.87,17.15]
[1727360394662,1.2981,153.95,153.87,17.15]
[1727360395063,3.2484,153.92,153.87,17.15]
[1727360395269,1.2981,153.95,153.87,17.15]
[1727360395463,3.2481,153.93,153.89,3.2487]
[1727360395874,1.2981,153.95,153.89,3.2487]
[1727360396270,1.2981,153.95,153.85,17.15]
[1727360396476,1.2981,153.95,153.85,20.43230629]
[1727360396976,1.2981,153.95,153.87,17.15]
[1727360397369,1.2981,153.95,153.89,17.15]
[1727360397572,1.3665,153.98,153.89,17.15]
[1727360398072,1.3665,153.98,153.91,17.15]
[1727360398282,2.6311,154.0,153.91,17.15]
[1727360398577,1.3129,154.0,153.92,3.22477899]
[1727360398774,3.247,153.98,153.95,3.2474]
[1727360399076,1.3129,154.0,153.92,3.22477899]
[1727360399282,3.2471,153.98,153.92,3.22477899]
[1727360399571,1.3129,154.0,153.91,17.15]
[1727360399772,1.3129,154.0,153.91,20.33312437]
[1727360399974,17.15,154.04,153.94,17.15]
[1727360400474,3.2469,153.99,153.94,17.15]
[1727360400868,17.15,154.04,153.94,17.15]
[1727360401064,3.2469,153.99,153.95,3.2475]
[1727360401873,3.247,153.98,153.95,3.2475]
[1727360402073,17.15,154.04,153.94,17.15]
[1727360402275,17.15,154.02,153.91,17.15]
[1727360402673,3.2473,153.97,153.93,3.2479]
[1727360403175,17.15,154.0,153.89,17.15]
[1727360403381,2.6362,153.99,153.89,17.15]
[1727360403776,3.2473,153.97,153.92,3.2482]
[1727360404166,2.6362,153.99,153.92,3.2482]
[1727360404377,3.2475,153.96,153.92,3.2482]
[1727360404679,3.2475,153.96,153.89,17.15]
[1727360404680,2.6362,153.99,153.89,17.15]
[1727360404980,2.6362,153.99,153.9,3.2485]
[1727360405174,2.6362,153.99,153.89,17.15]
[1727360405376,17.15,153.95,153.86,77.98]
[1727360405567,17.15,153.93,153.86,77.98]
[1727360405871,20.3982,153.93,153.86,77.98]
[1727360406072,3.2482,153.93,153.86,77.98]
[1727360406274,17.15,153.96,153.87,17.15]
[1727360406771,3.248,153.93,153.89,3.2488]
[1727360406972,17.15,153.96,153.89,3.2488]
[1727360407169,1.3659,153.98,153.89,17.15]
[1727360407470,17.15,154.05,153.93,17.15]
[1727360407778,3.2465,154.01,153.95,3.2475]
[1727360407979,3.2465,154.01,153.93,20.41824355]
[1727360408271,17.15,154.03,153.86,84.4786]
[1727360408471,1.2994,154.0,153.93,17.15]
[1727360408665,1.327,154.06,153.95,17.15]
[1727360408868,1.2994,154.05,153.95,17.15]
[1727360409277,1.2994,154.05,153.96,3.30777132]
[1727360409481,1.2994,154.05,153.99,3.2467]
[1727360409778,1.2994,154.05,153.97,17.15]
[1727360409975,1.2994,154.05,154.0,3.2463]
[1727360410176,1.2994,154.05,153.97,17.15]
[1727360410682,4.5451,154.05,154.0,3.2464]
[1727360411280,1.3659,154.08,153.97,17.15]
[1727360411780,1.3659,154.08,153.93,77.96]
[1727360411781,17.15,154.05,153.95,17.15]
[1727360412178,3.2463,154.02,153.97,3.247]
[1727360412380,1.3155,154.04,153.95,17.15]
[1727360413284,3.2463,154.02,153.95,17.15]
[1727360413575,1.3155,154.04,153.95,17.15]
[1727360413776,3.246,154.03,153.98,3.2469]
[1727360413972,3.246,154.03,153.95,17.15]
[1727360413973,1.3155,154.04,153.95,17.15]
[1727360415281,3.246,154.03,153.98,3.2469]
[1727360415674,1.3155,154.04,153.97,17.15]
[1727360416178,18.5159,154.08,153.97,17.15]
[1727360416179,17.15,154.06,153.97,17.15]
[1727360416376,3.2459,154.03,153.98,3.2469]
[1727360416575,17.15,154.06,153.98,3.2469]
[1727360416984,17.15,154.06,153.97,3.2471]
[1727360417374,3.2465,154.01,153.96,3.2472]
[1727360417578,3.2465,154.01,153.93,17.15]
[1727360417777,1.2956,154.03,153.96,17.15]
[1727360417981,1.3669,154.07,153.96,17.15]
[1727360418181,2.6625,154.07,153.98,17.15]
[1727360418883,19.8125,154.07,153.95,20.35201818]
[1727360419781,3.2457,154.04,154.0,3.2465]
[1727360420087,2.6625,154.07,153.97,17.15]
[1727360420678,5.9077,154.07,153.97,17.15]
[1727360421086,2.6625,154.07,153.97,17.15]
[1727360421289,3.2455,154.06,154.01,3.2463]
[1727360421686,2.6625,154.07,153.97,17.15]
[1727360422185,108.0,154.11,153.95,3.32055131]
[1727360422186,108.0,154.11,154.02,17.15]
[1727360422394,17.15,154.1,154.0,17.15]
[1727360422688,17.15,154.1,154.0,20.41979054]
[1727360422881,108.0,154.11,154.02,17.15]
[1727360423487,3.2448,154.09,154.03,3.2458]
[1727360423885,108.0,154.11,154.02,17.15]
[1727360424286,109.3184,154.11,154.02,17.15]
[1727360424489,3.2452,154.07,154.01,3.2462]
[1727360424685,17.15,154.1,153.99,17.15]
[1727360425192,3.245,154.08,154.02,3.246]
[1727360425385,109.3184,154.11,154.03,17.15]
[1727360426385,108.0,154.11,154.03,17.15]
[1727360426997,108.0,154.11,154.04,3.2456]
[1727360427295,17.15,154.09,153.98,17.15]
[1727360427690,3.2451,154.07,154.02,3.2461]
[1727360428089,3.2455,154.05,154.0,3.2465]
[1727360428492,2.663,154.08,154.0,3.2465]
[1727360428990,3.2453,154.06,154.0,3.2465]
[1727360429191,2.663,154.08,154.02,17.15]
[1727360429489,3.2446,154.1,154.02,17.15]
[1727360429690,108.0,154.11,154.02,17.15]
[1727360429896,108.0,154.11,154.03,3.2458]
[1727360430091,3.2447,154.09,154.02,20.31709672]
[1727360430299,108.0,154.11,154.06,20.3951]
[1727360430598,108.0,154.11,154.04,17.15]
[1727360430789,111.2444,154.11,154.06,3.2452]
[1727360430994,108.0,154.11,154.06,3.2452]
[1727360431689,108.0,154.11,154.07,3.245]
[1727360432287,108.0,154.11,153.98,17.15]
[1727360432288,12.74,154.11,154.09,17.15]
[1727360432488,2.6183,154.22,154.09,17.15]
[1727360432697,2.6183,154.22,154.06,17.15]
[1727360432698,3.2423,154.21,154.14,17.15]
[1727360432892,17.15,154.27,154.17,17.15]
[1727360433093,17.15,154.27,154.08,77.92]
[1727360433094,1.2822,154.27,154.08,77.92]
[1727360433289,1.2822,154.27,154.21,17.15]
[1727360433494,1.2822,154.27,154.15,17.15]
[1727360433495,1.2822,154.27,154.23,17.15]
[1727360433791,125.15,154.33,154.25,17.15]
[1727360433792,108.0,154.33,154.25,17.15]
[1727360433992,108.0,154.33,154.28,17.15]
[1727360434195,108.0,154.33,154.23,3.30216293]
[1727360434395,1.2822,154.32,154.2,105.28]
[1727360434700,1.2822,154.32,154.2,108.50463533]
[1727360434898,1.3361,154.31,154.2,77.9]
[1727360435092,28.7161,154.31,154.2,77.9]
[1727360435492,28.7161,154.31,154.14,27.38]
[1727360435493,27.38,154.28,154.14,27.38]
[1727360435694,27.38,154.28,154.14,105.28]
[1727360436087,27.38,154.3,154.17,27.38]
[1727360436289,1.3361,154.31,154.2,27.38]
[1727360436493,27.38,154.29,154.15,27.38]
[1727360436899,27.38,154.27,154.15,27.38]
[1727360437098,1.3361,154.31,154.15,27.38]
[1727360437295,27.38,154.29,154.15,27.38]
[1727360437996,3.2424,154.2,154.15,27.38]
[1727360438205,27.38,154.29,154.16,3.18647806]
[1727360438597,27.38,154.29,154.15,27.38]
[1727360439001,27.38,154.26,154.14,77.9]
[1727360439197,27.38,154.23,154.14,77.9]
[1727360439394,27.38,154.2,154.08,27.38]
[1727360439705,27.38,154.2,154.07,3.25395795]
[1727360439905,27.38,154.2,154.05,105.24]
[1727360440304,3.2443,154.11,154.05,108.45405398]
[1727360440608,27.38,154.2,154.05,108.45405398]
[1727360440806,3.2443,154.11,154.05,108.45405398]
[1727360441317,27.38,154.21,154.05,108.45405398]
[1727360441509,6.4842,154.22,154.05,108.45405398]
[1727360441808,27.38,154.17,154.05,108.45405398]
[1727360442212,27.38,154.2,154.05,108.45405398]
[1727360442414,3.2444,154.1,154.05,108.45405398]
[1727360442616,27.38,154.2,154.05,108.45405398]
[1727360442814,3.2446,154.09,154.05,108.45405398]
[1727360443114,3.2446,154.09,153.92,3.31092715]
[1727360443115,27.38,154.18,154.02,27.38]
[1727360443309,1.2732,154.17,154.02,30.59822666]
[1727360443514,3.2451,154.07,154.02,30.59822666]
[1727360443917,1.399,154.16,154.02,30.59822666]
[1727360444717,27.38,154.12,154.01,77.86]
[1727360445215,4.50961894,154.15,154.05,27.38]
[1727360445216,1.2702,154.15,154.05,27.38]
[1727360445615,3.2446,154.1,154.05,27.38]
[1727360446113,1.2702,154.15,154.05,27.38]
[1727360446415,1.399,154.16,154.05,27.38]
[1727360446615,1.399,154.16,154.01,77.86]
[1727360446616,1.2702,154.22,154.1,27.38]
[1727360446822,3.9252,154.22,154.1,30.60351558]
[1727360447115,31.3052,154.22,154.08,27.38]
[1727360447317,3.2434,154.16,154.1,3.2443]
[1727360447513,31.3052,154.22,154.08,27.38]
[1727360447514,3.9252,154.22,154.08,27.38]
[1727360447714,3.9252,154.22,154.01,77.86]
[1727360447715,3.9252,154.22,154.12,27.38]
[1727360448219,31.3052,154.22,154.09,27.38]
[1727360448722,3.9252,154.22,154.09,27.38]
[1727360449617,3.2433,154.16,154.11,3.2442]
[1727360449821,3.9252,154.22,154.09,30.56807755]
[1727360450619,3.2435,154.15,154.09,30.56807755]
[1727360450820,3.9252,154.22,154.09,30.56807755]
[1727360451316,3.2432,154.17,154.12,3.244]
[1727360451623,3.9252,154.22,154.12,27.38]
[1727360452418,3.2425,154.19,154.12,27.38]
[1727360452922,3.2425,154.19,154.14,3.2434]
[1727360453124,2.655,154.22,154.12,27.38]
[1727360453125,3.2428,154.18,154.12,27.38]
[1727360453424,2.655,154.22,154.12,27.38]
[1727360454022,2.655,154.22,154.13,3.2438]
[1727360454323,1.3417,154.22,154.13,3.2438]
[1727360454522,1.3417,154.22,154.12,27.38]
[1727360454721,1.3417,154.22,154.14,3.2435]
[1727360455026,3.2427,154.19,154.14,3.2435]
[1727360455327,1.2898,154.26,154.15,30.6234]
[1727360455526,1.2898,154.26,154.15,27.38]
[1727360455527,1.2926,154.25,154.15,27.38]
[1727360455731,3.2427,154.19,154.15,27.38]
[1727360456022,1.2926,154.25,154.15,27.38]
[1727360456221,3.2425,154.2,154.15,30.6232]
[1727360456424,1.2926,154.25,154.17,17.12]
[1727360456822,3.2429,154.18,154.14,20.3636]
[1727360457425,17.12,154.23,154.12,17.12]
[1727360457619,18.4126,154.25,154.14,17.12]
[1727360458522,3.243,154.17,154.13,3.2437]
[1727360458725,17.12,154.23,154.12,17.12]
[1727360459125,3.2433,154.16,154.12,20.364]
[1727360459625,17.12,154.23,154.12,17.12]
[1727360459818,1.2926,154.25,154.12,17.12]
[1727360460023,17.12,154.23,154.12,17.12]
[1727360460423,1.2926,154.25,154.15,17.12]
[1727360460832,17.12,154.24,154.12,17.12]
[1727360461330,17.12,154.22,154.1,17.12]
[1727360462023,17.12,154.22,154.12,17.12]
[1727360462436,17.12,154.22,154.09,81.05362039]
[1727360462437,17.12,154.19,154.09,77.86]
[1727360462731,17.12,154.17,154.09,77.86]
[1727360462932,17.12,154.15,154.09,77.86]
[1727360463628,4.0449,154.18,153.92,22.79982715]
[1727360463629,17.12,154.13,153.94,77.86]
[1727360463834,17.12,154.13,154.02,17.12]
[1727360464035,17.12,154.1,153.99,17.12]
[1727360464333,36.65,154.17,153.97,27.43]
[1727360464334,4.0449,154.09,153.97,27.43]
[1727360464532,4.0449,154.09,154.02,3.2459]